fUSD/lending_fUSD_20240419
["ID","MTS","AMOUNT","RATE_DAILY","PERIOD"]
[322980589,1713558643093,-721.68,0.00016438,2]
[322980590,1713558643102,-558.5,0.00016438,2]
[322980591,1713558643114,-500.0,0.00016438,2]
[322980592,1713558643123,-500.0,0.00016438,2]
[322980593,1713558643132,-500.0,0.00016438,2]
[322980594,1713558643142,-500.0,0.00016438,2]
[322980595,1713558643151,-500.0,0.00016438,2]
[322980596,1713558643161,-500.0,0.00016438,2]
[322980597,1713558643170,-500.0,0.00016438,2]
[322980598,1713558643179,-936.88,0.00016438,2]
[322980599,1713558643189,-1569.59,0.00016438,2]
[322980600,1713558643198,-500.0,0.00016438,2]
[322980601,1713558643208,-802.51,0.00016438,2]
[322980602,1713558643217,-446.57630727,0.00016438,2]
[322980603,1713558643227,-500.0,0.00016438,2]
[322980604,1713558643237,-500.0,0.00016438,2]
[322980605,1713558643246,-786.35,0.00016438,2]
[322980607,1713558643255,-500.0,0.00016438,2]
[322980609,1713558643265,-500.0,0.00016438,2]
[322980611,1713558643274,-714.89,0.00016438,2]
[322980613,1713558643283,-500.0,0.00016438,2]
[322980615,1713558643293,-511.5,0.00016438,2]
[322980617,1713558643302,-652.23,0.00016438,2]
[322980618,1713558643312,-500.0,0.00016438,2]
[322980619,1713558643322,-500.0,0.00016438,2]
[322980620,1713558643333,-500.0,0.00016438,2]
[322980621,1713558643344,-370.03554502,0.00016438,2]
[322980622,1713558643354,-500.0,0.00016438,2]
[322980623,1713558643364,-500.0,0.00016438,2]
[322980624,1713558643374,-500.0,0.00016438,2]
[322980625,1713558643383,-523.57702798,0.00016438,2]
[322980626,1713558643393,-500.0,0.00016438,2]
[322980627,1713558643402,-1134.85,0.00016438,2]
[322980628,1713558643411,-1488.53,0.00016438,2]
[322980629,1713558643421,-526.67,0.00016438,2]
[322980630,1713558643430,-759.58,0.00016438,2]
[322980631,1713558643438,-749.4,0.00016438,2]
[322980632,1713558643449,-656.04,0.00016438,2]
[322980633,1713558643458,-905.14,0.00016438,2]
[322980634,1713558643466,-500.0,0.00016438,2]
[322980635,1713558643475,-500.0,0.00016438,2]
[322980636,1713558643484,-612.89,0.00016438,2]
[322980637,1713558643494,-500.0,0.00016438,2]
[322980638,1713558643506,-500.0,0.00016438,2]
[322980639,1713558643517,-611.85,0.00016438,2]
[322980640,1713558643527,-819.47,0.00016438,2]
[322980641,1713558643536,-500.0,0.00016438,2]
[322980642,1713558643546,-500.0,0.00016438,2]
[322980643,1713558643555,-500.0,0.00016438,2]
[322980644,1713558643565,-620.3,0.00016438,2]
[322980645,1713558643574,-500.0,0.00016438,2]
[322980646,1713558643583,-542.71,0.00016438,2]
[322980647,1713558643592,-500.0,0.00016438,2]
[322980648,1713558643601,-729.88,0.00016438,2]
[322980649,1713558643612,-500.0,0.00016438,2]
[322980650,1713558643621,-547.88,0.00016438,2]
[322980651,1713558643629,-500.0,0.00016438,2]
[322980652,1713558643640,-500.0,0.00016438,2]
[322980653,1713558643651,-947.93,0.00016438,2]
[322980654,1713558643660,-504.0,0.00016438,2]
[322980655,1713558643670,-500.0,0.00016438,2]
[322980656,1713558643679,-500.0,0.00016438,2]
[322980657,1713558643689,-741.1,0.00016438,2]
[322980658,1713558643700,-566.75,0.00016438,2]
[322980659,1713558643717,-500.0,0.00016438,2]
[322980660,1713558643727,-500.0,0.00016438,2]
[322980661,1713558643737,-500.0,0.00016438,2]
[322980662,1713558643748,-500.0,0.00016438,2]
[322980663,1713558643759,-834.7,0.00016438,2]
[322980664,1713558643769,-500.0,0.00016438,2]
[322980665,1713558643780,-500.0,0.00016438,2]
[322980666,1713558643791,-500.0,0.00016438,2]
[322980667,1713558643803,-569.30365156,0.00016438,2]
[322980668,1713558643814,-500.0,0.00016438,2]
[322980669,1713558643822,-558.29,0.00016438,2]
[322980670,1713558643832,-500.0,0.00016438,2]
[322980671,1713558643843,-500.0,0.00016438,2]
[322980672,1713558643854,-500.0,0.00016438,2]
[322980673,1713558643866,-670.51,0.00016438,2]
[322980674,1713558643875,-500.0,0.00016438,2]
[322980675,1713558643884,-573.98,0.00016438,2]
[322980676,1713558643894,-500.0,0.00016438,2]
[322980677,1713558643903,-500.0,0.00016438,2]
[322980678,1713558643912,-534.57,0.00016438,2]
[322980679,1713558643921,-656.6,0.00016438,2]
[322980680,1713558643931,-500.0,0.00016438,2]
[322980681,1713558643940,-666.41,0.00016438,2]
[322980682,1713558643949,-500.0,0.00016438,2]
[322980683,1713558643959,-500.0,0.00016438,2]
[322980684,1713558643967,-500.0,0.00016438,2]
[322980685,1713558643977,-500.0,0.00016438,2]
[322980686,1713558643986,-500.0,0.00016438,2]
[322980687,1713558643996,-150.0,0.00016438,2]
[322980688,1713558644005,-660.54,0.00016438,2]
[322980689,1713558644015,-654.5,0.00016438,2]
[322980690,1713558644024,-500.0,0.00016438,2]
[322980691,1713558644033,-540.27,0.00016438,2]
[322980692,1713558644042,-500.0,0.00016438,2]
[322980693,1713558644052,-340.0176515,0.00016438,2]
[322980694,1713558644061,-1019.03,0.00016438,2]
[322980695,1713558644070,-500.0,0.00016438,2]
[322980696,1713558644079,-500.0,0.00016438,2]
[322980697,1713558644089,-500.0,0.00016438,2]
[322980698,1713558644098,-500.0,0.00016438,2]
[322980699,1713558644109,-500.0,0.00016438,2]
[322980700,1713558644118,-500.0,0.00016438,2]
[322980701,1713558644129,-500.0,0.00016438,2]
[322980702,1713558644138,-500.0,0.00016438,2]
[322980703,1713558644148,-500.0,0.00016438,2]
[322980704,1713558644158,-518.55,0.00016438,2]
[322980705,1713558644167,-500.0,0.00016438,2]
[322980706,1713558644176,-551.88,0.00016438,2]
[322980707,1713558644185,-570.14,0.00016438,2]
[322980708,1713558644194,-995.76,0.00016438,2]
[322980709,1713558644204,-500.0,0.00016438,2]
[322980710,1713558644213,-647.04,0.00016438,2]
[322980711,1713558644223,-553.04,0.00016438,2]
[322980712,1713558644232,-500.0,0.00016438,2]
[322980713,1713558644243,-500.0,0.00016438,2]
[322980714,1713558644253,-500.0,0.00016438,2]
[322980715,1713558644263,-500.0,0.00016438,2]
[322980716,1713558644273,-500.0,0.00016438,2]
[322980717,1713558644282,-500.0,0.00016438,2]
[322980718,1713558644293,-500.0,0.00016438,2]
[322980719,1713558644303,-680.14,0.00016438,2]
[322980720,1713558644313,-533.43,0.00016438,2]
[322980721,1713558644325,-500.0,0.00016438,2]
[322980722,1713558644335,-500.0,0.00016438,2]
[322980723,1713558644345,-500.0,0.00016438,2]
[322980724,1713558644355,-500.0,0.00016438,2]
[322980725,1713558644365,-500.0,0.00016438,2]
[322980726,1713558644375,-500.0,0.00016438,2]
[322980727,1713558644385,-1616.92,0.00016438,2]
[322980728,1713558644396,-293.63057559,0.00016438,2]
[322980729,1713558644406,-768.88,0.00016438,2]
[322980730,1713558644416,-500.0,0.00016438,2]
[322980731,1713558644426,-704.94,0.00016438,2]
[322980732,1713558644436,-500.0,0.00016438,2]
[322980733,1713558644448,-954.09,0.00016438,2]
[322980734,1713558644459,-515.31,0.00016438,2]
[322980735,1713558644470,-500.0,0.00016438,2]
[322980736,1713558644480,-500.0,0.00016438,2]
[322980737,1713558644490,-500.0,0.00016438,2]
[322980738,1713558644501,-500.0,0.00016438,2]
[322980739,1713558644510,-634.45,0.00016438,2]
[322980740,1713558644521,-500.0,0.00016438,2]
[322980741,1713558644532,-727.92,0.00016438,2]
[322980742,1713558644542,-500.0,0.00016438,2]
[322980743,1713558644551,-645.16,0.00016438,2]
[322980744,1713558644561,-500.0,0.00016438,2]
[322980745,1713558644571,-500.0,0.00016438,2]
[322980746,1713558644582,-765.36,0.00016438,2]
[322980747,1713558644591,-500.0,0.00016438,2]
[322980748,1713558644602,-500.0,0.00016438,2]
[322980749,1713558644613,-942.87,0.00016438,2]
[322980750,1713558644624,-500.0,0.00016438,2]
[322980751,1713558644636,-500.0,0.00016438,2]
[322980752,1713558644646,-924.92,0.00016438,2]
[322980753,1713558644655,-1060.86,0.00016438,2]
[322980754,1713558644666,-500.0,0.00016438,2]
[322980755,1713558644678,-500.0,0.00016438,2]
[322980756,1713558644688,-500.0,0.00016438,2]
[322980757,1713558644699,-529.21,0.00016438,2]
[322980758,1713558644710,-1368.27,0.00016438,2]
[322980759,1713558644721,-500.0,0.00016438,2]
[322980760,1713558644731,-762.38,0.00016438,2]
[322980761,1713558644743,-618.39,0.00016438,2]
[322980762,1713558644753,-500.0,0.00016438,2]
[322980763,1713558644764,-516.63,0.00016438,2]
[322980764,1713558644775,-500.0,0.00016438,2]
[322980765,1713558644785,-921.3,0.00016438,2]
[322980766,1713558644794,-822.11,0.00016438,2]
[322980767,1713558644803,-980.83,0.00016438,2]
[322980768,1713558644812,-500.0,0.00016438,2]
[322980769,1713558644822,-966.29,0.00016438,2]
[322980770,1713558644832,-776.59,0.00016438,2]
[322980771,1713558644842,-500.0,0.00016438,2]
[322980772,1713558644851,-504.91,0.00016438,2]
[322980773,1713558644860,-500.0,0.00016438,2]
[322980774,1713558644870,-500.0,0.00016438,2]
[322980775,1713558644880,-500.0,0.00016438,2]
[322980776,1713558644890,-611.43,0.00016438,2]
[322980777,1713558644900,-500.0,0.00016438,2]
[322980778,1713558644909,-626.82,0.00016438,2]
[322980779,1713558644918,-500.0,0.00016438,2]
[322980780,1713558644928,-526.54,0.00016438,2]
[322980781,1713558644937,-1524.64,0.00016438,2]
[322980782,1713558644947,-541.48,0.00016438,2]
[322980783,1713558644956,-513.01,0.00016438,2]
[322980784,1713558644965,-500.0,0.00016438,2]
[322980785,1713558644975,-934.53,0.00016438,2]
[322980786,1713558644986,-574.85,0.00016438,2]
[322980787,1713558644997,-500.0,0.00016438,2]
[322980788,1713558645008,-573.33,0.00016438,2]
[322980789,1713558645018,-500.0,0.00016438,2]
[322980790,1713558645028,-900.02,0.00016438,2]
[322980791,1713558645037,-762.33,0.00016438,2]
[322980792,1713558645046,-500.0,0.00016438,2]
[322980793,1713558645055,-1522.13,0.00016438,2]
[322980794,1713558645064,-500.0,0.00016438,2]
[322980795,1713558645074,-500.0,0.00016438,2]
[322980796,1713558645083,-1831.31,0.00016438,2]
[322980797,1713558645093,-623.50496639,0.00016438,2]
[322980798,1713558645103,-500.0,0.00016438,2]
[322980799,1713558645113,-657.63,0.00016438,2]
[322980800,1713558645122,-1321.86,0.00016438,2]
[322980801,1713558645132,-500.0,0.00016438,2]
[322980802,1713558645142,-940.58,0.00016438,2]
[322980803,1713558645151,-500.0,0.00016438,2]
[322980804,1713558645161,-500.0,0.00016438,2]
[322980805,1713558645171,-500.0,0.00016438,2]
[322980806,1713558645181,-500.0,0.00016438,2]
[322980807,1713558645191,-500.0,0.00016438,2]
[322980808,1713558645201,-591.92,0.00016438,2]
[322980809,1713558645210,-500.0,0.00016438,2]
[322980810,1713558645220,-500.0,0.00016438,2]
[322980811,1713558645230,-500.0,0.00016438,2]
[322980812,1713558645240,-752.67,0.00016438,2]
[322980813,1713558645250,-500.0,0.00016438,2]
[322980814,1713558645259,-500.0,0.00016438,2]
[322980815,1713558645270,-687.77,0.00016438,2]
[322980816,1713558645280,-857.09,0.00016438,2]
[322980817,1713558645289,-500.0,0.00016438,2]
[322980818,1713558645299,-1293.07,0.00016438,2]
[322980819,1713558645309,-548.13,0.00016438,2]
[322980820,1713558645319,-500.0,0.00016438,2]
[322980821,1713558645329,-566.93,0.00016438,2]
[322980822,1713558645339,-500.0,0.00016438,2]
[322980823,1713558645348,-1010.54,0.00016438,2]
[322980824,1713558645360,-500.0,0.00016438,2]
[322980825,1713558645370,-500.0,0.00016438,2]
[322980826,1713558645379,-500.0,0.00016438,2]
[322980827,1713558645388,-500.0,0.00016438,2]
[322980828,1713558645398,-643.37,0.00016438,2]
[322980829,1713558645408,-1801.59,0.00016438,2]
[322980830,1713558645417,-500.0,0.00016438,2]
[322980831,1713558645426,-723.2,0.00016438,2]
[322980832,1713558645436,-929.58,0.00016438,2]
[322980833,1713558645445,-535.59,0.00016438,2]
[322980834,1713558645454,-500.0,0.00016438,2]
[322980835,1713558645463,-972.61,0.00016438,2]
[322980836,1713558645472,-500.0,0.00016438,2]
[322980837,1713558645481,-1172.43,0.00016438,2]
[322980838,1713558645490,-500.0,0.00016438,2]
[322980839,1713558645499,-500.0,0.00016438,2]
[322980840,1713558645508,-500.0,0.00016438,2]
[322980841,1713558645518,-965.98,0.00016438,2]
[322980843,1713558645527,-500.0,0.00016438,2]
[322980845,1713558645536,-1114.41,0.00016438,2]
[322980847,1713558645545,-500.0,0.00016438,2]
[322980849,1713558645555,-500.0,0.00016438,2]
[322980851,1713558645564,-1096.71,0.00016438,2]
[322980853,1713558645574,-500.0,0.00016438,2]
[322980855,1713558645583,-515.86,0.00016438,2]
[322980856,1713558645592,-564.3,0.00016438,2]
[322980857,1713558645601,-500.0,0.00016438,2]
[322980858,1713558645611,-791.0,0.00016438,2]
[322980859,1713558645620,-500.0,0.00016438,2]
[322980860,1713558645629,-500.0,0.00016438,2]
[322980861,1713558645639,-500.0,0.00016438,2]
[322980862,1713558645648,-500.0,0.00016438,2]
[322980863,1713558645657,-750.36,0.00016438,2]
[322980864,1713558645667,-630.23,0.00016438,2]
[322980865,1713558645676,-548.24,0.00016438,2]
[322980866,1713558645685,-304.22614428,0.00016438,2]
[322980868,1713558645694,-911.49,0.00016438,2]
[322980869,1713558645706,-524.33,0.00016438,2]
[322980870,1713558645715,-500.0,0.00016438,2]
[322980871,1713558645724,-500.0,0.00016438,2]
[322980872,1713558645734,-500.0,0.00016438,2]
[322980873,1713558645743,-840.55,0.00016438,2]
[322980874,1713558645753,-500.0,0.00016438,2]
[322980875,1713558645762,-500.0,0.00016438,2]
[322980876,1713558645771,-500.0,0.00016438,2]
[322980877,1713558645784,-705.81,0.00016438,2]
[322980878,1713558645793,-673.55,0.00016438,2]
[322980879,1713558645802,-500.0,0.00016438,2]
[322980880,1713558645811,-500.0,0.00016438,2]
[322980881,1713558645821,-500.0,0.00016438,2]
[322980882,1713558645830,-500.0,0.00016438,2]
[322980883,1713558645839,-500.0,0.00016438,2]
[322980885,1713558645850,-500.0,0.00016438,2]
[322980886,1713558645861,-500.0,0.00016438,2]
[322980887,1713558645870,-502.97,0.00016438,2]
[322980888,1713558645880,-500.0,0.00016438,2]
[322980889,1713558645889,-500.0,0.00016438,2]
[322980890,1713558645898,-500.0,0.00016438,2]
[322980891,1713558645908,-802.83,0.00016438,2]
[322980892,1713558645918,-500.0,0.00016438,2]
[322980893,1713558645929,-500.0,0.00016438,2]
[322980894,1713558645938,-500.0,0.00016438,2]
[322980895,1713558645947,-500.0,0.00016438,2]
[322980896,1713558645956,-500.0,0.00016438,2]
[322980897,1713558645966,-645.73,0.00016438,2]
[322980898,1713558645975,-500.0,0.00016438,2]
[322980899,1713558645984,-500.0,0.00016438,2]
[322980900,1713558645994,-750.08,0.00016438,2]
[322980901,1713558646003,-1439.15,0.00016438,2]
[322980902,1713558646012,-674.26,0.00016438,2]
[322980903,1713558646022,-926.09,0.00016438,2]
[322980904,1713558646031,-500.0,0.00016438,2]
[322980905,1713558646040,-388.90521126,0.00016438,2]
[322980906,1713558646050,-500.0,0.00016438,2]
[322980907,1713558646059,-500.0,0.00016438,2]
[322980908,1713558646068,-500.0,0.00016438,2]
[322980909,1713558646078,-554.92,0.00016438,2]
[322980910,1713558646087,-555.33,0.00016438,2]
[322980911,1713558646097,-500.0,0.00016438,2]
[322980912,1713558646108,-702.4,0.00016438,2]
[322980913,1713558646117,-500.0,0.00016438,2]
[322980914,1713558646126,-500.0,0.00016438,2]
[322980915,1713558646136,-500.0,0.00016438,2]
[322980916,1713558646145,-984.7,0.00016438,2]
[322980917,1713558646155,-663.94,0.00016438,2]
[322980918,1713558646164,-1162.46,0.00016438,2]
[322980919,1713558646174,-500.0,0.00016438,2]
[322980920,1713558646183,-500.0,0.00016438,2]
[322980921,1713558646192,-500.0,0.00016438,2]
[322980922,1713558646202,-1506.4,0.00016438,2]
[322980923,1713558646211,-1226.98,0.00016438,2]
[322980924,1713558646220,-749.03,0.00016438,2]
[322980925,1713558646229,-567.17,0.00016438,2]
[322980926,1713558646238,-2038.23,0.00016438,2]
[322980927,1713558646247,-500.0,0.00016438,2]
[322980929,1713558646256,-500.0,0.00016438,2]
[322980930,1713558646266,-500.0,0.00016438,2]
[322980931,1713558646275,-500.0,0.00016438,2]
[322980932,1713558646284,-1171.53,0.00016438,2]
[322980933,1713558646295,-500.0,0.00016438,2]
[322980934,1713558646305,-514.84,0.00016438,2]
[322980936,1713558646314,-500.0,0.00016438,2]
[322980937,1713558646323,-667.08,0.00016438,2]
[322980938,1713558646333,-500.0,0.00016438,2]
[322980939,1713558646342,-1533.91,0.00016438,2]
[322980940,1713558646352,-500.0,0.00016438,2]
[322980941,1713558646362,-500.0,0.00016438,2]
[322980942,1713558646371,-665.29,0.00016438,2]
[322980943,1713558646380,-500.0,0.00016438,2]
[322980944,1713558646389,-500.0,0.00016438,2]
[322980945,1713558646398,-548.78,0.00016438,2]
[322980946,1713558646408,-1072.73,0.00016438,2]
[322980947,1713558646417,-500.0,0.00016438,2]
[322980948,1713558646427,-502.25,0.00016438,2]
[322980949,1713558646437,-1385.81,0.00016438,2]
[322980950,1713558646446,-500.0,0.00016438,2]
[322980951,1713558646455,-500.0,0.00016438,2]
[322980952,1713558646464,-500.0,0.00016438,2]
[322980953,1713558646473,-500.0,0.00016438,2]
[322980954,1713558646483,-1795.37,0.00016438,2]
[322980955,1713558646492,-283.44622598,0.00016438,2]
[322980956,1713558646501,-1981.62,0.00016438,2]
[322980957,1713558646511,-500.0,0.00016438,2]
[322980958,1713558646520,-770.92,0.00016438,2]
[322980959,1713558646530,-500.0,0.00016438,2]
[322980960,1713558646539,-500.0,0.00016438,2]
[322980961,1713558646549,-1021.97,0.00016438,2]
[322980962,1713558646559,-500.0,0.00016438,2]
[322980963,1713558646570,-1109.83,0.00016438,2]
[322980964,1713558646580,-500.0,0.00016438,2]
[322980965,1713558646590,-742.73,0.00016438,2]
[322980966,1713558646599,-500.0,0.00016438,2]
[322980967,1713558646608,-1326.76,0.00016438,2]
[322980968,1713558646618,-500.0,0.00016438,2]
[322980969,1713558646627,-1489.31,0.00016438,2]
[322980970,1713558646637,-517.49,0.00016438,2]
[322980971,1713558646647,-500.0,0.00016438,2]
[322980972,1713558646656,-500.0,0.00016438,2]
[322980973,1713558646666,-500.0,0.00016438,2]
[322980974,1713558646675,-634.15,0.00016438,2]
[322980975,1713558646684,-565.85,0.00016438,2]
[322980976,1713558646694,-878.83,0.00016438,2]
[322980977,1713558646707,-1303.11,0.00016438,2]
[322980978,1713558646717,-908.32,0.00016438,2]
[322980979,1713558646727,-500.0,0.00016438,2]
[322980980,1713558646738,-500.0,0.00016438,2]
[322980981,1713558646748,-1203.17,0.00016438,2]
[322980982,1713558646759,-500.0,0.00016438,2]
[322980983,1713558646769,-688.53,0.00016438,2]
[322980984,1713558646780,-911.79,0.00016438,2]
[322980985,1713558646790,-2108.55,0.00016438,2]
[322980986,1713558646800,-500.0,0.00016438,2]
[322980987,1713558646809,-754.36,0.00016438,2]
[322980988,1713558646819,-500.0,0.00016438,2]
[322980989,1713558646829,-580.38,0.00016438,2]
[322980990,1713558646838,-500.0,0.00016438,2]
[322980991,1713558646848,-500.0,0.00016438,2]
[322980992,1713558646857,-500.0,0.00016438,2]
[322980993,1713558646869,-1446.67,0.00016438,2]
[322980994,1713558646879,-500.0,0.00016438,2]
[322980995,1713558646888,-713.91,0.00016438,2]
[322980996,1713558646897,-500.0,0.00016438,2]
[322980997,1713558646906,-500.0,0.00016438,2]
[322980998,1713558646915,-1128.95,0.00016438,2]
[322980999,1713558646924,-500.0,0.00016438,2]
[322981000,1713558646934,-500.0,0.00016438,2]
[322981001,1713558646943,-500.0,0.00016438,2]
[322981002,1713558646953,-500.0,0.00016438,2]
[322981003,1713558646962,-500.0,0.00016438,2]
[322981004,1713558646972,-666.83,0.00016438,2]
[322981005,1713558646981,-615.31,0.00016438,2]
[322981006,1713558646991,-500.0,0.00016438,2]
[322981007,1713558647000,-150.0,0.00016438,2]
[322981008,1713558647009,-2234.42,0.00016438,2]
[322981009,1713558647019,-500.0,0.00016438,2]
[322981010,1713558647029,-500.0,0.00016438,2]
[322981011,1713558647039,-500.0,0.00016438,2]
[322981012,1713558647051,-1838.4,0.00016438,2]
[322981013,1713558647063,-1631.04,0.00016438,2]
[322981014,1713558647072,-500.0,0.00016438,2]
[322981015,1713558647081,-500.0,0.00016438,2]
[322981016,1713558647090,-500.0,0.00016438,2]
[322981017,1713558647099,-500.0,0.00016438,2]
[322981018,1713558647109,-500.0,0.00016438,2]
[322981019,1713558647118,-500.0,0.00016438,2]
[322981020,1713558647127,-1286.54,0.00016438,2]
[322981021,1713558647137,-1226.94,0.00016438,2]
[322981022,1713558647147,-500.0,0.00016438,2]
[322981023,1713558647158,-689.78,0.00016438,2]
[322981024,1713558647409,-500.0,0.00016438,2]
[322981025,1713558647420,-500.0,0.00016438,2]
[322981026,1713558647433,-500.0,0.00016438,2]
[322981027,1713558647443,-500.0,0.00016438,2]
[322981028,1713558647456,-986.26,0.00016438,2]
[322981029,1713558647467,-890.03,0.00016438,2]
[322981030,1713558647477,-500.0,0.00016438,2]
[322981031,1713558647486,-1884.35,0.00016438,2]
[322981032,1713558647495,-500.0,0.00016438,2]
[322981033,1713558647505,-500.0,0.00016438,2]
[322981034,1713558647514,-500.0,0.00016438,2]
[322981035,1713558647524,-500.0,0.00016438,2]
[322981036,1713558647535,-500.0,0.00016438,2]
[322981037,1713558647546,-500.0,0.00016438,2]
[322981038,1713558647555,-835.27,0.00016438,2]
[322981039,1713558647566,-1597.0,0.00016438,2]
[322981040,1713558647576,-500.0,0.00016438,2]
[322981041,1713558647586,-901.81,0.00016438,2]
[322981042,1713558647596,-584.58,0.00016438,2]
[322981043,1713558647606,-894.03,0.00016438,2]
[322981044,1713558647618,-500.0,0.00016438,2]
[322981045,1713558647628,-280.42161682,0.00016438,2]
[322981046,1713558647637,-500.0,0.00016438,2]
[322981047,1713558647648,-823.61,0.00016438,2]
[322981048,1713558647659,-1852.86,0.00016438,2]
[322981049,1713558647669,-500.0,0.00016438,2]
[322981050,1713558647680,-506.62,0.00016438,2]
[322981051,1713558647690,-570.09414094,0.00016438,2]
[322981052,1713558647699,-562.63,0.00016438,2]
[322981053,1713558647713,-1834.86,0.00016438,2]
[322981054,1713558647724,-736.13,0.00016438,2]
[322981055,1713558647737,-622.29,0.00016438,2]
[322981056,1713558647750,-500.0,0.00016438,2]
[322981057,1713558647762,-1535.02,0.00016438,2]
[322981058,1713558647773,-1434.48,0.00016438,2]
[322981059,1713558647784,-637.75,0.00016438,2]
[322981060,1713558647794,-2027.82,0.00016438,2]
[322981061,1713558647807,-665.5,0.00016438,2]
[322981062,1713558647819,-779.83,0.00016438,2]
[322981063,1713558647830,-500.0,0.00016438,2]
[322981064,1713558647843,-500.0,0.00016438,2]
[322981065,1713558647853,-1930.96,0.00016438,2]
[322981066,1713558647865,-2173.04,0.00016438,2]
[322981067,1713558647875,-1585.43,0.00016438,2]
[322981068,1713558647885,-500.0,0.00016438,2]
[322981069,1713558647895,-500.0,0.00016438,2]
[322981070,1713558647905,-2833.81,0.00016438,2]
[322981071,1713558647916,-2818.31,0.00016438,2]
[322981072,1713558647926,-981.0,0.00016438,2]
[322981073,1713558647936,-1539.68,0.00016438,2]
[322981074,1713558647945,-1078.9,0.00016438,2]
[322981075,1713558647954,-706.63,0.00016438,2]
[322981076,1713558647963,-1178.1,0.00016438,2]
[322981077,1713558647973,-500.0,0.00016438,2]
[322981078,1713558647983,-531.56,0.00016438,2]
[322981079,1713558647992,-500.0,0.00016438,2]
[322981080,1713558648002,-2756.89,0.00016438,2]
[322981081,1713558648013,-500.0,0.00016438,2]
[322981082,1713558648025,-500.0,0.00016438,2]
[322981083,1713558648037,-2012.17,0.00016438,2]
[322981084,1713558648047,-500.0,0.00016438,2]
[322981085,1713558648057,-500.0,0.00016438,2]
[322981086,1713558648066,-4978.06,0.00016438,2]
[322981087,1713558648075,-520.31,0.00016438,2]
[322981088,1713558648085,-759.84,0.00016438,2]
[322981089,1713558648095,-1492.24,0.00016438,2]
[322981090,1713558648106,-775.55,0.00016438,2]
[322981091,1713558648117,-500.0,0.00016438,2]
[322981092,1713558648127,-2867.16,0.00016438,2]
[322981093,1713558648138,-500.0,0.00016438,2]
[322981094,1713558648148,-2105.83,0.00016438,2]
[322981095,1713558648158,-500.0,0.00016438,2]
[322981096,1713558648167,-3673.92,0.00016438,2]
[322981097,1713558648178,-531.69,0.00016438,2]
[322981098,1713558648187,-500.0,0.00016438,2]
[322981099,1713558648198,-773.55,0.00016438,2]
[322981100,1713558648207,-500.0,0.00016438,2]
[322981101,1713558648218,-1901.18,0.00016438,2]
[322981102,1713558648230,-500.0,0.00016438,2]
[322981103,1713558648242,-500.0,0.00016438,2]
[322981104,1713558648254,-1126.86,0.00016438,2]
[322981105,1713558648265,-500.0,0.00016438,2]